Cogmind - Beta 16.1 @@@ ROGUE MODE // 2026.06.17 @ 21:40:36 Player: 0R-LIM Result: Destroyed by FO-FP6(R) with Subdweller Laser Performance ------------- Evolutions (0) 0 Regions Visited (2) 400 Robots Destroyed (24) 120 Value Destroyed (399) 399 Prototype IDs (0) 0 Alien Tech Used (0) 0 Bonus (0) 0 TOTAL SCORE: 919 Bonus ------- None Cogmind --------- Core Integrity 0/250 Matter 300/300 Energy 100/100 System Corruption 0% Temperature Cool (6) Movement Core (100) Ox1 Location -10/Subcaves Parts ------- > --- POWER (1) -------- (None) > --- PROPULSION (2) --- (None) > --- UTILITY (2) ------ Small Storage Unit > --- WEAPON (2) ------- (None) > --- INVENTORY (8) ---- Wheel Wheel Heat Sink Huge Storage Unit Signal Interpreter Light Assault Rifle Grenade Launcher Mining Laser Peak State ------------ > --- POWER ------------ Light Ion Engine > --- PROPULSION ------- Wheel Compact Wheel > --- UTILITY ---------- Small Storage Unit Seismic Detector > --- WEAPON ----------- EM Pulse Gun Light Assault Rifle > --- INVENTORY -------- Ion Engine Wheel Light Assault Rifle [Rating: 7] Favorites ----------- Power Light Ion Engine Engine Light Ion Engine Propulsion Wheel Wheel Wheel Utility Small Storage Unit Device Seismic Detector Storage Small Storage Unit Weapon EM Pulse Gun Energy Gun EM Pulse Gun Ballistic Gun Light Assault Rifle Special Weapon Mining Laser Build | -11 -10 -10 ------- Run | Yrd Mat Sub Slots Evolved . | . . . Power . | . . . Propulsion . | . . . Utility . | . . . Weapon . | . . . Parts Attached 13 | 7 4 2 Power 2 | 1 1 . Engine 2 | 1 1 . Core . | . . . Reactor . | . . . Propulsion 5 | 2 2 1 Treads . | . . . Leg . | . . . Wheel 5 | 2 2 1 Hover . | . . . Flight . | . . . Utility 2 | 2 . . Device 1 | 1 . . Storage 1 | 1 . . Processor . | . . . Hackware . | . . . Protection . | . . . Artifact . | . . . Weapon 4 | 2 1 1 Energy Gun 1 | 1 . . Energy Cannon . | . . . Ballistic Gun 2 | 1 . 1 Ballistic Cannon . | . . . Launcher . | . . . Special Weapon 1 | . 1 . Impact Weapon . | . . . Slashing Weapon . | . . . Piercing Weapon . | . . . Special Melee Weapon . | . . . Unidentified Prototypes . | . . . Parts Lost 9 | . 3 6 Power 2 | . 1 1 Propulsion 4 | . 2 2 Utility 1 | . . 1 Weapon 2 | . . 2 Highest Loss Streak 6 | . 2 6 To Critical Strikes . | . . . Average Backups 5 | 2 5 6 Power . | . . . Propulsion . | . . . Utility 1 | . 1 3 Weapon 2 | . 2 3 Tool/Special . | . . . Unused Backups 6 | . 1 5 Power . | . . . Propulsion 2 | . 1 1 Utility 3 | . . 3 Weapon 1 | . . 1 Tool/Special . | . . . Average Slot Usage (%) 94 | . 94 93 Engine 13 | . 13 14 Wheel 23 | . 23 25 Device 13 | . 14 12 Storage 14 | . 14 14 Energy Gun 13 | . 13 11 Ballistic Gun 11 | . 14 3 Special Weapon 2 | . . 10 Peak Build Rating 7 | 7 7 7 Average Rating 6 | 5 6 6 On Entrance 4 | . 7 7 Avg Prop Armor Cover (%) . | . . . Naked Turns . | . . . Heaviest Build 14 | 12 14 14 Greatest Support 26 | 26 26 20 Greatest Overweight (x) 1 | . 1 . Average Overweight (x) . | . . . Largest Inventory Capacity 8 | 8 8 8 Average Capacity 7 | 7 8 8 Most Carried 8 | 3 8 8 Average Carried 5 | 2 5 6 Final Capacity 8 | 8 8 8 Final Carried 8 | 3 6 8 Class Distribution -------------------- 100% | Mutant Dominant Class ---------------- Mutant | -10/Materials Mutant | -10/Subcaves Resources | -11 -10 -10 ----------- Run | Yrd Mat Sub Matter Collected 388 | 217 152 19 Remotely . | . . . Salvage Created 703 | 149 554 . Parts 55 | 17 38 . Haulers Intercepted . | . . . Recyclers Shooed . | . . . Parts Field Recycled . | . . . Retrieved Matter . | . . . Parts Self-Destructed 8 | . . 8 Prevented . | . . . Parts Restored . | . . . Kills | -11 -10 -10 ------- Run | Yrd Mat Sub Combat Hostiles Destroyed 12 | . 12 . Guns 11 | . 11 . AOE 1 | . 1 . Classes Destroyed 7 | 1 6 . Worker 2 | . 2 . Builder 1 | . 1 . Tunneler 7 | 6 1 . Operator 1 | . 1 . Watcher 1 | . 1 . Swarmer 5 | . 5 . Grunt 7 | . 7 . Best Kill Streak 6 | 3 6 . Combat Bots Only 4 | . 4 . Max Kills in Single Turn 1 | 1 1 . Gunslinging . | . . . Exploded 1 | . 1 . Melee . | . . . Uniques/NPCs Destroyed . | . . . Combat | -11 -10 -10 -------- Run | Yrd Mat Sub Hostile Shots Fired 72 | . 37 35 Missed 18 | . 11 7 Hits 54 | . 26 28 Projectile 54 | . 26 28 Critical Strikes 2 | . 1 1 Damage Taken 961 | . 366 595 Core 255 | . 58 197 Absorbed by Shields . | . . . Core Remaining (%) 100 | 100 . . Volleys Fired 85 | 15 47 23 Largest 2 | 2 2 1 Hottest 100 | 60 100 100 Shots Fired 145 | 30 92 23 Gun 128 | 30 90 8 Cannon . | . . . Launcher . | . . . Special 17 | . 2 15 Kinetic 68 | 15 45 8 Thermal 17 | . 2 15 Explosive . | . . . Electromagnetic 60 | 15 45 . Robot Hit Streak 10 | 5 10 8 Robot Miss Streak 3 | 3 3 1 Penetration Max . | . . . Secondary Targets . | . . . Shots Hit Robots 76 | 17 52 7 Core Hits 37 | 9 27 1 Critical Kills . | . . . Critical Parts Destroyed . | . . . Critical Strikes 2 | . 2 . Corrupt 2 | . 2 . Melee Attacks . | . . . Impact . | . . . Slashing . | . . . Piercing . | . . . Sneak Attacks . | . . . Combat Hostiles . | . . . Follow-up Attacks . | . . . Damage Inflicted 1033 | 242 737 54 Guns 860 | 202 604 54 Cannons . | . . . Explosions 172 | 40 132 . Melee . | . . . Ramming 1 | . 1 . Kinetic 299 | 94 151 54 Thermal 172 | 40 132 . Explosive . | . . . Electromagnetic 561 | 108 453 . Impact . | . . . Slashing . | . . . Piercing . | . . . Highest Corruption . | . . . Average Corruption . | . . . Corruption Purged . | . . . Corruption Blocked . | . . . Overload Shots . | . . . Overflow Damage 17 | . 17 . Projectiles . | . . . Explosions 17 | . 17 . Melee . | . . . Knockbacks . | . . . Impact . | . . . Kinetic . | . . . Secondary . | . . . Self-Inflicted Damage 68 | . 68 . Shots 2 | . 2 . Rammed 1 | . 1 . Targets Rammed 1 | . 1 . Kicked . | . . . Crushed . | . . . Highest Temperature 112 | 40 112 . Average Temperature 32 | 19 36 . Received Heat Transfer 240 | . 144 96 Siege Activations . | . . . Martial Activations . | . . . Shielding Activations . | . . . Robots Disrupted . | . . . Combat Hostiles . | . . . Robots Corrupted . | . . . Combat Hostiles . | . . . Parts Fried 2 | . 2 . Impact Corruptions . | . . . Robots Melted . | . . . Combat Hostiles . | . . . Parts Melted . | . . . Heat Transferred 250 | 50 200 . Parts Sabotaged . | . . . Parts Stolen . | . . . Parts Stripped . | . . . Power Chain Reactions 4 | 1 3 . Alert | -11 -10 -10 ------- Run | Yrd Mat Sub Maximum Alert Level . | . . . Low Security (%) 100 | 100 100 . Level 1 . | . . . Level 2 . | . . . Level 3 . | . . . Level 4 . | . . . Level 5 . | . . . High Security . | . . . Max Security . | . . . Peak Influence 192 | 10 192 . Initial . | . . . Average 56 | . 74 . Influence Increases 487 | 30 457 . Destroy 0b10 Robot/C 240 | . 240 . Destroy 0b10 Robot/NC 60 | 30 30 . Destroy Leader 52 | . 52 . Disable Machine 15 | . 15 . Destroy Structure 15 | . 15 . Lose Combat Pursuer 105 | . 105 . Influence Decreases 487 | 30 273 184 Entered New Map 89 | . . 89 Time Decay 368 | 30 243 95 Lost Part 30 | . 30 . Squads Dispatched 3 | . 3 . Investigation 2 | . 2 . Extermination . | . . . Reinforcement 1 | . 1 . Assault . | . . . Garrison . | . . . Intercept . | . . . Searches Triggered . | . . . Construction Impeded . | . . . Haulers Reinforced . | . . . Active Scanning Responses . | . . . Cargo Convoy Interrupts . | . . . Stealth | -11 -10 -10 --------- Run | Yrd Mat Sub Distress Signals 4 | . 4 . Communications Jammed . | . . . Distress Signals . | . . . Times Spotted 29 | . 27 2 Peak Tracking Total 5 | . 5 2 Tactical Retreats 5 | . 5 . Traps | -11 -10 -10 ------- Run | Yrd Mat Sub Traps Triggered 2 | . 2 . Indirectly . | . . . Trap Hack Attempts . | . . . Triggered . | . . . Disarmed . | . . . Reprogrammed . | . . . Reused . | . . . Traps Extracted . | . . . Installed . | . . . Triggered . | . . . Machines | -11 -10 -10 ---------- Run | Yrd Mat Sub Machines Disabled 1 | . 1 . Max in Single Turn 1 | . 1 . Machines Repaired . | . . . Machines Dismantled . | . . . Machines Sabotaged . | . . . Overloaded Fab Kills . | . . . Hacking | -11 -10 -10 --------- Run | Yrd Mat Sub Machines Accessed 3 | . 3 . Terminals 2 | . 2 . Fabricators . | . . . Repair Stations . | . . . Recycling Units 1 | . 1 . Scanalyzers . | . . . Garrison Access . | . . . Total Hacks 6 | . 6 . Successful 3 | . 3 . Failed 3 | . 3 . Catastrophic . | . . . Database Lockouts . | . . . Manual . | . . . Terminals 5 | . 5 . Fabricators . | . . . Repair Stations . | . . . Recycling Units 1 | . 1 . Scanalyzers . | . . . Garrison Access . | . . . Terminal Hacks 2 | . 2 . Record 1 | . 1 . Branch Access Points 1 | . 1 . Fabricator Hacks . | . . . Repair Station Hacks . | . . . Recycling Unit Hacks 1 | . 1 . Report Inventory 1 | . 1 . Scanalyzer . | . . . Garrison Access Hacks . | . . . Unauthorized Hacks . | . . . Terminals . | . . . Fabricators . | . . . Repair Stations . | . . . Recycling Units . | . . . Scanalyzers . | . . . Garrison Access . | . . . Data Cores Recovered . | . . . Used . | . . . Hacking Detections 2 | . 2 . Full Trace Events . | . . . Feedback Events . | . . . Feedback Blocked . | . . . Robot Schematics Acquired . | . . . Robots Built . | . . . Authchips . | . . . Time . | . . . Total Robot Build Rating . | . . . Part Schematics Acquired . | . . . Parts Built . | . . . Authchips . | . . . Time . | . . . Total Part Build Rating . | . . . Part Studies Acquired . | . . . Parts Repaired . | . . . Time . | . . . Parts Recycled . | . . . Recycled Matter . | . . . Retrieved Matter . | . . . Retrieved Components . | . . . Parts Scanalyzed . | . . . Part Schematics Acquired . | . . . Parts Damaged . | . . . Bothacking | -11 -10 -10 ------------ Run | Yrd Mat Sub Used RIF Installer . | . . . Robots Hacked . | . . . Non-combat . | . . . Combat . | . . . Robot Hacks Applied . | . . . Relay Couplers Released . | . . . Fabnet Peak Effective % . | . . . Robots Rewired . | . . . Allies Hacked . | . . . Hacks Repelled . | . . . Allies | -11 -10 -10 -------- Run | Yrd Mat Sub Total Allies . | . . . Largest Group . | . . . Highest-Rated Group . | . . . Highest-Rated Ally . | . . . Total Orders . | . . . Ally Attacks . | . . . Total Damage . | . . . Kills . | . . . Allies Corrupted . | . . . Allies Melted . | . . . Intel | -11 -10 -10 ------- Run | Yrd Mat Sub Active Infowar (turns) 934 | 5 708 221 Seismic 934 | 5 708 221 Robot Analysis Total . | . . . Derelict Logs Recovered 1 | . . 1 Drone Launches . | . . . Drone Recoveries . | . . . Exploration | -11 -10 -10 ------------- Run | Yrd Mat Sub Turns Passed 1177 | 226 708 243 Spaces Moved 802 | 132 499 171 Core 2 | 2 . . Treads . | . . . Legs . | . . . Wheels 800 | 130 499 171 Hover . | . . . Flight . | . . . Fastest Speed 50 | 50 80 80 Average Speed 86 | 89 87 80 Slowest Speed 100 | 100 95 80 Overloaded Moves . | . . . Propulsion Burnouts . | . . . Robots Hopped . | . . . Potential Cave-ins . | . . . Cave-ins Triggered . | . . . Exploration Rate (%) 25 | 5 63 8 Regions Visited 2 Branch Regions 1 Pre-discovered Areas . | . . . Known Exits Taken . | . . . Unknown Exits Taken 2 | 1 1 . Scrap Searched . | . . . Spaces Dug . | . . . Terrain Destroyed 13 | . 13 . Melee . | . . . Projectile . | . . . AOE 13 | . 13 . Terrain Rammed . | . . . Walls Destroyed . | . . . Machines Disabled . | . . . Actions | -11 -10 -10 --------- Run | Yrd Mat Sub Total 1117 | 209 683 225 Wait 205 | 53 125 27 Move 800 | 131 498 171 Hop . | . . . Pick Up 10 | 3 6 1 Fast Attach 8 | 7 1 . Attach 2 | . 2 . Detach . | . . . Swap 5 | . 2 3 Drop 1 | . 1 . Fire 85 | 15 47 23 Melee . | . . . Ram 1 | . 1 . Kick . | . . . Crush . | . . . Escape Stasis . | . . . Rewire . | . . . Trap . | . . . Miscellaneous . | . . . Route ------- -11/Scrapyard -10/Materials (discovered 3 exits: [*Mat] / *Min / [*Sub]) -10/Subcaves History --------- Turn | Location | Event 30 | -11/Scrapyard | Discovered new exit (range 15) 227 | -11/Scrapyard | Entered Materials 299 | -10/Materials | Discovered new exit (range 11) 300 | -10/Materials | Build established: Mutant 458 | -10/Materials | Identified exit to Mines 927 | -10/Materials | Discovered new exit (range 11) 935 | -10/Materials | Entered Subcaves 936 | -10/Subcaves | Approached by a straggling Scientist 978 | -10/Subcaves | Learned Materials interactive machine intel 1161 | -10/Subcaves | Core integrity fell below 50% 1173 | -10/Subcaves | Core integrity fell below 20% 1178 | -10/Subcaves | Destroyed by FO-FP6(R) with Subdweller Laser Last Messages --------------- 00978_ Acquired derelict log, extracted data. Data stored: Materials interactive machine intel. K4-8GX(c): "I think it's somewhere north of here" 00988_ UT-N9H(z): "She is not going to be happy we haven't found any suitable candidates yet." K4-8GX(c): "I think it's somewhere north of here" 01130_ K4-8GX(c) destroyed. 01134_ Acquired 19 matter. 01135_ Subatomizers dissect the Lgt. Ion Engine. 01136_ Acquired Wheel. 01138_ EM Pulse Gun destroyed. 01146_ Subatomizers dissect the Lgt. Ion Engine. 01150_ Wheel destroyed. 01156_ Seismic Detector destroyed. 01156_ Wheel destroyed. 01162_ Lgt. Assault Rifle destroyed. 01176_ Ion Engine destroyed. Map ----- +----------------------------------------------------+ | ?????????????????????????????????????????????????? | | ??????????????????????????????????????????#######? | | ??????????????????????????????????######?## ## #? | | ??????????????????????????????????# ### ## | | ??????????????????????????????????# ### # | | ??????????????????????????????????## ## | | ??????????????????????????????????## | | ?????????????????????????????????## | | ????????????????????????????????## " ## | | ??????????????????????????????### " ##### | | ?????????????????????????????## ###" ##??## | | ???????????????????????????### #?#####?### | | ???????????????????????????#" #???????# | | ????????????????????????"""""""""""########?# # | | ??????????????????????? " ""######## " ??### | | ???????????? ??????????# """"##???## "#????## | | ???????????? ?????????### ##????## "##???# | | ????????????? ???????????##?????## " ""##### | | ?????????????# ?????######?###### """ " ## | | ????????????## ????? ## "## " | | ??????????### ??????# # " """ ##### | | ??????????# ???????# " """ ##??##### # # | | ??????????# ?#????## "" ## ##??##?##### | | ??????? ## #<